[Event "17th Memorial Lezcano Montalvo 2025"]
[Site "Gran Canaria"]
[Date "2025.04.17"]
[Round "6.1"]
[White "Larino Nieto, David"]
[Black "Alsina Leal, Daniel"]
[Result "1-0"]
[Annotator "RC"]
[ECO "A04"]
[WhiteElo "2448"]
[BlackElo "2496"]
[PlyCount "93"]
[EventDate "2025.04.13"]
[EventType "swiss"]
[EventCountry "ESP"]
[SourceTitle "playchess.com"]
[Source "ChessBase"]
[SourceQuality "1"]
[TimeControl "5400+30"]

1. g3 {[%emt 0:08:22]} e5 {[%emt 0:01:10]} 2. Nf3 {[%emt 0:00:23]} Nc6 {[%emt 0:08:20]} 3. d4 {[%emt 0:00:17]} e4 {[%emt 0:01:48]} 4. Ne5 {[%emt 0:00:17]} Nce7 {[%emt 0:07:27]} 5. Bg2 {[%emt 0:32:23]} d6 {[%emt 0:04:36]} 6. Nc4 {[%emt 0:00:09]} d5 {[%emt 0:01:00]} 7. Ne3 {[%emt 0:00:03]} Nf6 {[%emt 0:01:44]} 8. c4 {[%emt 0:00:07]} c6 {[%emt 0:06:37]} 9. Nc3 {[%emt 0:00:06]} g6 {[%emt 0:04:03]} 10. cxd5 {[%emt 0:00:07]} cxd5 {[%emt 0:00:29]} 11. Qa4+ {[%emt 0:00:23]} Bd7 {[%emt 0:03:57]} 12. Qb3 {[%emt 0:00:01]} Bc6 {[%emt 0:01:26]} 13. Nc2 {[%emt 0:00:02]} Bg7 {[%emt 0:02:21]} 14. Nb4 {[%emt 0:01:04]} O-O {[%emt 0:05:29]} 15. Nxc6 {[%emt 0:00:23]} bxc6 {[%emt 0:06:57]} 16. Na4 {[%emt 0:01:35]} Nd7 {[%emt 0:03:34]} 17. Qc3 {[%emt 0:02:59]} c5 {[%emt 0:02:13]} 18. Nxc5 {[%emt 0:00:52]} Nxc5 {[%emt 0:01:19]} 19. Qxc5 {[%emt 0:00:08]} Rc8 {[%emt 0:02:00]} 20. Qa3 {[%emt 0:01:26]} Bxd4 {[%emt 0:01:47]} 21. Bg5 {[%emt 0:01:38]} f6 {[%emt 0:13:42]} 22. Bh6 {[%emt 0:02:11]} Re8 {[%emt 0:04:50]} 23. Bh3 {[%emt 0:00:14]} f5 {[%emt 0:02:11]} 24. O-O {[%emt 0:10:30]} Qb6 {[%emt 0:00:36]} 25. Rac1 {[%emt 0:01:03]} Rxc1 {[%emt 0:04:00]} 26. Rxc1 {[%emt 0:05:52]} Bxf2+ {[%emt 0:01:14]} 27. Kh1 {[%emt 0:00:02]} Bd4 {[%emt 0:00:51]} 28. g4 {[%emt 0:00:06]} fxg4 {[%emt 0:05:25]} 29. Bxg4 {[%emt 0:00:40]} Nf5 {[%emt 0:00:09]} 30. Qa4 {[%emt 0:07:31]} Rd8 {[%emt 0:00:34]} 31. Bxf5 {[%emt 0:15:08]} gxf5 {[%emt 0:00:03]} 32. Rd1 {[%emt 0:00:06]} Bg7 {[%emt 0:02:34]} 33. Bxg7 {[%emt 0:00:08]} Kxg7 {[%emt 0:00:06]} 34. Qa3 {[%emt 0:00:01]} Qc7 {[%emt 0:01:21]} 35. b3 {[%emt 0:02:22]} d4 {[%emt 0:01:25]} 36. Rc1 {[%emt 0:01:04]} Qd7 {[%emt 0:00:34]} 37. Qa5 {[%emt 0:00:10]} Qd5 {[%emt 0:00:35]} 38. Rc5 {[%emt 0:04:38]} Qd6 {[%emt 0:00:12]} 39. Rxf5 {[%emt 0:00:19]} d3 {[%emt 0:00:46]} 40. Qxa7+ {[%emt 0:01:11]} Kh8 {[%emt 0:00:28]} 41. Rf7 {[%emt 0:01:25]} Qg6 {[%emt 0:00:34]} 42. Qc7 {[%emt 0:02:27]} Re8 {[%emt 0:00:28]} 43. Qc3+ {[%emt 0:00:06]} Kg8 {[%emt 0:00:08]} 44. Rf1 {[%emt 0:00:03]} dxe2 {[%emt 0:00:52]} 45. Rg1 {[%emt 0:00:21]} Re6 {[%emt 0:00:34]} 46. Rxg6+ {[%emt 0:00:32]} hxg6 {[%emt 0:00:02]} 47. Qe1 {[%emt 0:00:09]} 1-0

[Event "17th Memorial Lezcano Montalvo 2025"]
[Site "Gran Canaria"]
[Date "2025.04.17"]
[Round "6.2"]
[White "Fiorito, Francisco"]
[Black "Akhvlediani, Irakli"]
[Result "1/2-1/2"]
[Annotator "RC"]
[ECO "A38"]
[WhiteElo "2431"]
[BlackElo "2387"]
[PlyCount "23"]
[EventDate "2025.04.13"]
[EventType "swiss"]
[EventCountry "ESP"]
[SourceTitle "playchess.com"]
[Source "ChessBase"]
[SourceQuality "1"]
[TimeControl "5400+30"]

1. Nf3 {[%emt 0:00:04]} c5 {[%emt 0:02:07]} 2. c4 {[%emt 0:00:43]} Nc6 {[%emt 0:00:08]} 3. Nc3 {[%emt 0:00:05]} Nf6 {[%emt 0:00:03]} 4. g3 {[%emt 0:01:09]} g6 {[%emt 0:00:05]} 5. Bg2 {[%emt 0:00:04]} Bg7 {[%emt 0:00:02]} 6. O-O {[%emt 0:00:06]} d6 {[%emt 0:00:02]} 7. d3 {[%emt 0:01:55]} O-O {[%emt 0:00:08]} 8. a3 {[%emt 0:00:45]} Qd7 {[%emt 0:00:33]} 9. Rb1 {[%emt 0:02:52]} b6 {[%emt 0:00:10]} 10. b4 {[%emt 0:01:01]} Bb7 {[%emt 0:00:03]} 11. Bd2 {[%emt 0:03:28]} Nd4 {[%emt 0:07:30]} 12. e3 {[%emt 0:07:09]} 1/2-1/2

[Event "17th Memorial Lezcano Montalvo 2025"]
[Site "Gran Canaria"]
[Date "2025.04.17"]
[Round "6.3"]
[White "Kaczur, Florian"]
[Black "Torres Rebolledo, Alvaro"]
[Result "1-0"]
[Annotator "ChessBase"]
[ECO "A70"]
[WhiteElo "2495"]
[BlackElo "2311"]
[PlyCount "47"]
[EventDate "2025.04.13"]
[EventType "swiss"]
[EventCountry "ESP"]
[SourceTitle "playchess.com"]
[Source "ChessBase"]
[SourceQuality "1"]
[TimeControl "5400+30"]

1. d4 {[%emt 0:00:04]} Nf6 {[%emt 0:00:07]} 2. c4 {[%emt 0:00:14]} c5 {[%emt 0:00:44]} 3. d5 {[%emt 0:00:19]} g6 {[%emt 0:00:19]} 4. Nc3 {[%emt 0:00:07]} Bg7 {[%emt 0:00:13]} 5. e4 {[%emt 0:00:12]} d6 {[%emt 0:00:08]} 6. Bd3 {[%emt 0:00:41]} O-O {[%emt 0:00:17]} 7. h3 {[%emt 0:02:30]} e6 {[%emt 0:00:11]} 8. Nf3 {[%emt 0:00:06]} exd5 {[%emt 0:00:08]} 9. cxd5 {[%emt 0:00:05]} b5 {[%emt 0:00:46]} 10. Nxb5 {[%emt 0:00:34]} Re8 {[%emt 0:00:42]} 11. O-O {[%emt 0:01:52]} Nxe4 {[%emt 0:00:30]} 12. Qa4 {[%emt 0:13:41]} Bd7 {[%emt 0:17:44]} 13. Re1 {[%emt 0:07:34]} Nf6 {[%emt 0:10:51]} 14. Bg5 {[%emt 0:08:07]} a6 {[%emt 0:09:22]} 15. Qa3 {[%emt 0:17:06]} Qb6 {[%emt 0:08:27]} 16. Nc3 {[%emt 0:01:26]} Ra7 {[%emt 0:08:12]} 17. Nd2 {[%emt 0:02:12]} Qc7 {[%emt 0:07:21]} 18. Nc4 {[%emt 0:02:00]} Rxe1+ {[%emt 0:01:58]} 19. Rxe1 {[%emt 0:00:05]} Bb5 {[%emt 0:00:49]} 20. Bxf6 {[%emt 0:12:13]} Bxf6 {[%emt 0:00:14]} 21. Nxd6 {[%emt 0:01:11]} Bxd3 {[%emt 0:01:37]} 22. Ne8 {[%emt 0:00:21]} Qf4 {[%emt 0:07:00]} 23. Nxf6+ {[%emt 0:01:06]} Qxf6 {[%emt 0:01:01]} 24. Qxc5 {[%emt 0:01:04]} 1-0

[Event "17th Memorial Lezcano Montalvo 2025"]
[Site "Gran Canaria"]
[Date "2025.04.17"]
[Round "6.4"]
[White "Gomez Ledo, Roberto Carlos"]
[Black "Korneev, Oleg"]
[Result "1/2-1/2"]
[Annotator "RC"]
[ECO "B80"]
[WhiteElo "2396"]
[BlackElo "2466"]
[PlyCount "58"]
[EventDate "2025.04.13"]
[EventType "swiss"]
[EventCountry "ESP"]
[SourceTitle "playchess.com"]
[Source "ChessBase"]
[SourceQuality "1"]
[TimeControl "5400+30"]

1. e4 {[%emt 1:31:00]} c5 {[%emt 0:02:17]} 2. Nf3 {[%emt 0:00:00]} e6 {[%emt 0:01:46]} 3. d4 {[%emt 0:00:00]} cxd4 {[%emt 0:02:35]} 4. Nxd4 {[%emt 0:00:00]} Nf6 {[%emt 0:00:05]} 5. Nc3 {[%emt 0:00:00]} d6 {[%emt 0:00:03]} 6. Be3 {[%emt 0:00:00]} a6 {[%emt 0:00:23]} 7. f3 {[%emt 0:00:00]} b5 {[%emt 0:00:18]} 8. a3 {[%emt 0:00:00]} Bb7 {[%emt 0:00:25]} 9. Qd2 {[%emt 0:00:00]} Nbd7 {[%emt 0:00:58]} 10. g4 {[%emt 0:00:00]} Nb6 {[%emt 0:03:07]} 11. O-O-O {[%emt 0:00:00]} Rc8 {[%emt 0:02:09]} 12. h4 {[%emt 0:00:00]} Be7 {[%emt 0:04:17]} 13. h5 {[%emt 0:00:00]} Nfd7 {[%emt 0:01:22]} 14. g5 {[%emt 0:00:00]} Ne5 {[%emt 0:03:53]} 15. f4 {[%emt 0:00:00]} Nec4 {[%emt 0:00:41]} 16. Bxc4 {[%emt 0:00:00]} Nxc4 {[%emt 0:00:03]} 17. Qd3 {[%emt 0:00:00]} b4 {[%emt 0:08:11]} 18. axb4 {[%emt 0:00:00]} Qb6 {[%emt 0:00:08]} 19. Rh3 {[%emt 0:00:00]} Qxb4 {[%emt 0:28:45]} 20. Nb3 {[%emt 0:00:00]} O-O {[%emt 0:02:56]} 21. f5 {[%emt 0:00:00]} Ne5 {[%emt 0:10:58]} 22. Qf1 {[%emt 0:00:00]} Rxc3 {[%emt 0:02:18]} 23. bxc3 {[%emt 0:00:00]} Qa3+ {[%emt 0:00:10]} 24. Kd2 {[%emt 0:00:00]} exf5 {[%emt 0:07:25]} 25. exf5 {[%emt 0:00:00]} Re8 {[%emt 0:08:22]} 26. Ra1 {[%emt 0:00:00]} Qb2 {[%emt 0:00:01]} 27. Rb1 {[%emt 0:00:05]} Nc4+ {[%emt 0:01:47]} 28. Qxc4 {[%emt 0:00:05]} Qxb1 {[%emt 0:00:05]} 29. g6 {[%emt 0:00:18]} d5 {[%emt 0:01:20]} 1/2-1/2

[Event "17th Memorial Lezcano Montalvo 2025"]
[Site "Gran Canaria"]
[Date "2025.04.17"]
[Round "6.5"]
[White "Petriashvili, Nikoloz"]
[Black "Narciso Dublan, Marc"]
[Result "1/2-1/2"]
[Annotator "RC"]
[ECO "A27"]
[WhiteElo "2459"]
[BlackElo "2376"]
[PlyCount "78"]
[EventDate "2025.04.13"]
[EventType "swiss"]
[EventCountry "ESP"]
[SourceTitle "playchess.com"]
[Source "ChessBase"]
[SourceQuality "1"]
[TimeControl "5400+30"]

1. c4 {[%emt 0:01:32]} e5 {[%emt 0:00:47]} 2. Nc3 {[%emt 0:00:49]} Nc6 {[%emt 0:00:18]} 3. Nf3 {[%emt 0:00:05]} g6 {[%emt 0:02:07]} 4. d4 {[%emt 0:00:24]} exd4 {[%emt 0:00:07]} 5. Nxd4 {[%emt 0:00:01]} Bg7 {[%emt 0:00:17]} 6. Nxc6 {[%emt 0:00:03]} dxc6 {[%emt 0:00:08]} 7. Qxd8+ {[%emt 0:00:28]} Kxd8 {[%emt 0:00:04]} 8. Bg5+ {[%emt 0:01:34]} f6 {[%emt 0:03:10]} 9. O-O-O+ {[%emt 0:00:46]} Ke8 {[%emt 0:04:15]} 10. Bf4 {[%emt 0:00:56]} Bh6 {[%emt 0:00:23]} 11. g3 {[%emt 0:04:34]} Be6 {[%emt 0:01:31]} 12. e3 {[%emt 0:00:03]} Bxf4 {[%emt 0:00:42]} 13. gxf4 {[%emt 0:00:02]} Rd8 {[%emt 0:09:58]} 14. Rxd8+ {[%emt 0:01:30]} Kxd8 {[%emt 0:00:27]} 15. h4 {[%emt 0:02:48]} f5 {[%emt 0:05:42]} 16. Be2 {[%emt 0:04:10]} Nf6 {[%emt 0:00:28]} 17. b3 {[%emt 0:00:01]} Ke7 {[%emt 0:00:53]} 18. h5 {[%emt 0:01:00]} gxh5 {[%emt 0:13:01]} 19. Bxh5 {[%emt 0:00:39]} Bf7 {[%emt 0:00:26]} 20. Be2 {[%emt 0:00:52]} h5 {[%emt 0:01:18]} 21. f3 {[%emt 0:00:27]} h4 {[%emt 0:06:37]} 22. Kd2 {[%emt 0:03:57]} Be6 {[%emt 0:05:27]} 23. e4 {[%emt 0:02:29]} a6 {[%emt 0:15:21]} 24. Ke3 {[%emt 0:09:19]} b5 {[%emt 0:04:28]} 25. Bd3 {[%emt 0:01:37]} bxc4 {[%emt 0:05:38]} 26. bxc4 {[%emt 0:01:13]} fxe4 {[%emt 0:01:05]} 27. fxe4 {[%emt 0:00:07]} Ng4+ {[%emt 0:03:08]} 28. Kf3 {[%emt 0:01:05]} h3 {[%emt 0:02:04]} 29. Be2 {[%emt 0:04:57]} Kf6 {[%emt 0:11:08]} 30. c5 {[%emt 0:03:41]} a5 {[%emt 0:01:28]} 31. f5 {[%emt 0:01:25]} Ne5+ {[%emt 0:00:19]} 32. Kg3 {[%emt 0:00:04]} Bf7 {[%emt 0:02:18]} 33. Rxh3 {[%emt 0:01:17]} Rxh3+ {[%emt 0:00:07]} 34. Kxh3 {[%emt 0:00:02]} Nd7 {[%emt 0:00:14]} 35. Bf3 {[%emt 0:05:06]} Nxc5 {[%emt 0:00:55]} 36. Kg3 {[%emt 0:00:29]} Ke5 {[%emt 0:00:57]} 37. a3 {[%emt 0:00:02]} Kd4 {[%emt 0:00:47]} 38. Ne2+ {[%emt 0:00:01]} Ke5 {[%emt 0:00:08]} 39. Nc3 {[%emt 0:00:02]} Kd4 {[%emt 0:00:35]} 1/2-1/2

[Event "17th Memorial Lezcano Montalvo 2025"]
[Site "Gran Canaria"]
[Date "2025.04.17"]
[Round "6.6"]
[White "Barski, Radoslaw"]
[Black "Maerevoet, Sim"]
[Result "1/2-1/2"]
[Annotator "RC"]
[ECO "B32"]
[WhiteElo "2385"]
[BlackElo "2451"]
[PlyCount "46"]
[EventDate "2025.04.13"]
[EventType "swiss"]
[EventCountry "ESP"]
[SourceTitle "playchess.com"]
[Source "ChessBase"]
[SourceQuality "1"]
[TimeControl "5400+30"]

1. e4 {[%emt 0:07:22]} c5 {[%emt 0:00:02]} 2. Nf3 {[%emt 0:00:09]} Nc6 {[%emt 0:00:07]} 3. d4 {[%emt 0:02:07]} cxd4 {[%emt 0:00:08]} 4. Nxd4 {[%emt 0:00:05]} e5 {[%emt 0:00:12]} 5. Nb5 {[%emt 0:00:10]} d6 {[%emt 0:00:05]} 6. N1c3 {[%emt 0:02:01]} a6 {[%emt 0:00:13]} 7. Na3 {[%emt 0:00:05]} Be6 {[%emt 0:00:15]} 8. Nc4 {[%emt 0:00:54]} Rb8 {[%emt 0:00:28]} 9. Ne3 {[%emt 0:01:33]} Nf6 {[%emt 0:00:20]} 10. Bd3 {[%emt 0:01:47]} g6 {[%emt 0:01:48]} 11. O-O {[%emt 0:00:11]} Bg7 {[%emt 0:02:59]} 12. Ncd5 {[%emt 0:02:44]} Bxd5 {[%emt 0:07:35]} 13. Nxd5 {[%emt 0:00:14]} Nxd5 {[%emt 0:00:23]} 14. exd5 {[%emt 0:00:07]} Ne7 {[%emt 0:00:55]} 15. Be2 {[%emt 0:00:15]} O-O {[%emt 0:01:52]} 16. a4 {[%emt 0:01:21]} Rc8 {[%emt 0:09:28]} 17. Re1 {[%emt 0:22:20]} f5 {[%emt 0:04:28]} 18. a5 {[%emt 0:03:18]} e4 {[%emt 0:09:45]} 19. Ra3 {[%emt 0:07:17]} Kh8 {[%emt 0:09:08]} 20. c4 {[%emt 0:01:37]} Ng8 {[%emt 0:05:27]} 21. b4 {[%emt 0:09:15]} Be5 {[%emt 0:14:11]} 22. Bf1 {[%emt 0:11:37]} Rf7 {[%emt 0:03:01]} 23. f4 {[%emt 0:06:04]} Bg7 {[%emt 0:05:26]} 1/2-1/2

[Event "17th Memorial Lezcano Montalvo 2025"]
[Site "Gran Canaria"]
[Date "2025.04.17"]
[Round "6.7"]
[White "Matnadze Bujiashvili, Ann"]
[Black "Pap, Misa"]
[Result "0-1"]
[Annotator "RC"]
[ECO "A81"]
[WhiteElo "2329"]
[BlackElo "2444"]
[PlyCount "140"]
[EventDate "2025.04.13"]
[EventType "swiss"]
[EventCountry "ESP"]
[SourceTitle "playchess.com"]
[Source "ChessBase"]
[SourceQuality "1"]
[TimeControl "5400+30"]

1. Nf3 {[%emt 0:00:08]} f5 {[%emt 0:02:09]} 2. d4 {[%emt 0:00:16]} Nf6 {[%emt 0:00:20]} 3. g3 {[%emt 0:00:04]} g6 {[%emt 0:00:25]} 4. Bg2 {[%emt 0:00:05]} Bg7 {[%emt 0:00:09]} 5. O-O {[%emt 0:00:10]} O-O {[%emt 0:00:37]} 6. d5 {[%emt 0:00:53]} d6 {[%emt 0:01:54]} 7. Nd4 {[%emt 0:00:08]} Ne4 {[%emt 0:01:14]} 8. c4 {[%emt 0:01:42]} c5 {[%emt 0:00:16]} 9. Nc2 {[%emt 0:02:03]} Qe8 {[%emt 0:02:51]} 10. Nd2 {[%emt 0:00:46]} Nxd2 {[%emt 0:00:17]} 11. Qxd2 {[%emt 0:00:16]} b5 {[%emt 0:00:06]} 12. cxb5 {[%emt 0:01:03]} Qxb5 {[%emt 0:00:21]} 13. Na3 {[%emt 0:04:29]} Qa6 {[%emt 0:07:06]} 14. Rb1 {[%emt 0:01:56]} Nd7 {[%emt 0:01:16]} 15. b3 {[%emt 0:02:44]} Nf6 {[%emt 0:02:34]} 16. Bb2 {[%emt 0:02:24]} Rb8 {[%emt 0:02:21]} 17. Bxf6 {[%emt 0:09:01]} Bxf6 {[%emt 0:03:00]} 18. Nc4 {[%emt 0:00:03]} Rb4 {[%emt 0:05:58]} 19. Rfd1 {[%emt 0:01:02]} Bd7 {[%emt 0:00:39]} 20. e3 {[%emt 0:01:03]} Rfb8 {[%emt 0:07:21]} 21. Bf1 {[%emt 0:00:37]} Qc8 {[%emt 0:01:44]} 22. Na5 {[%emt 0:05:17]} Qc7 {[%emt 0:00:43]} 23. a3 {[%emt 0:01:00]} Qxa5 {[%emt 0:03:07]} 24. axb4 {[%emt 0:00:06]} cxb4 {[%emt 0:00:09]} 25. Bc4 {[%emt 0:01:32]} Rc8 {[%emt 0:00:40]} 26. h4 {[%emt 0:00:17]} h5 {[%emt 0:02:15]} 27. Qe2 {[%emt 0:03:09]} Rc5 {[%emt 0:00:51]} 28. Rbc1 {[%emt 0:01:24]} Qc7 {[%emt 0:02:41]} 29. Rb1 {[%emt 0:05:32]} a5 {[%emt 0:02:06]} 30. Bd3 {[%emt 0:00:17]} Kg7 {[%emt 0:07:50]} 31. e4 {[%emt 0:02:24]} fxe4 {[%emt 0:04:44]} 32. Qxe4 {[%emt 0:01:25]} Bf5 {[%emt 0:00:11]} 33. Qe2 {[%emt 0:00:27]} Rxd5 {[%emt 0:01:04]} 34. Rbc1 {[%emt 0:03:14]} Bc3 {[%emt 0:01:17]} 35. Bxf5 {[%emt 0:00:59]} Rxf5 {[%emt 0:00:06]} 36. Rd3 {[%emt 0:02:29]} Rc5 {[%emt 0:08:44]} 37. Re3 {[%emt 0:02:40]} Kf7 {[%emt 0:05:43]} 38. Rf3+ {[%emt 0:02:07]} Bf6 {[%emt 0:07:58]} 39. Rxc5 {[%emt 0:00:39]} Qxc5 {[%emt 0:00:04]} 40. Qa6 {[%emt 0:05:29]} d5 {[%emt 0:01:46]} 41. Rd3 {[%emt 0:04:42]} d4 {[%emt 0:01:11]} 42. Qa8 {[%emt 0:03:16]} Qb5 {[%emt 0:01:18]} 43. Rf3 {[%emt 0:03:18]} Qe5 {[%emt 0:01:53]} 44. Qd8 {[%emt 0:06:15]} Kg7 {[%emt 0:01:25]} 45. Kg2 {[%emt 0:01:42]} Qc5 {[%emt 0:00:54]} 46. Qd7 {[%emt 0:01:51]} Qe5 {[%emt 0:01:06]} 47. Qd8 {[%emt 0:00:22]} Qb5 {[%emt 0:00:16]} 48. Rxf6 {[%emt 0:04:18]} Kxf6 {[%emt 0:00:38]} 49. Qxd4+ {[%emt 0:00:42]} Qe5 {[%emt 0:00:06]} 50. Qb6+ {[%emt 0:00:15]} Qe6 {[%emt 0:00:38]} 51. Qxa5 {[%emt 0:02:27]} Qxb3 {[%emt 0:00:01]} 52. Qg5+ {[%emt 0:00:09]} Kf7 {[%emt 0:00:05]} 53. Qf4+ {[%emt 0:00:06]} Ke8 {[%emt 0:00:52]} 54. Qb8+ {[%emt 0:07:03]} Kd7 {[%emt 0:00:05]} 55. Qb7+ {[%emt 0:00:06]} Ke6 {[%emt 0:02:34]} 56. Qc6+ {[%emt 0:01:51]} Kf7 {[%emt 0:00:31]} 57. Qe4 {[%emt 0:03:14]} Qc3 {[%emt 0:00:22]} 58. Qd5+ {[%emt 0:00:30]} Kg7 {[%emt 0:00:22]} 59. Qb7 {[%emt 0:01:18]} Kf6 {[%emt 0:01:45]} 60. Qb6+ {[%emt 0:00:31]} Kf7 {[%emt 0:00:20]} 61. f3 {[%emt 0:00:35]} b3 {[%emt 0:01:10]} 62. Qb7 {[%emt 0:00:13]} Qc2+ {[%emt 0:02:54]} 63. Kh3 {[%emt 0:00:03]} b2 {[%emt 0:00:10]} 64. Qd5+ {[%emt 0:00:06]} Kg7 {[%emt 0:02:11]} 65. Qe5+ {[%emt 0:00:09]} Kg8 {[%emt 0:01:04]} 66. Qd5+ {[%emt 0:01:24]} Kf8 {[%emt 0:00:04]} 67. Qd8+ {[%emt 0:00:17]} Kf7 {[%emt 0:00:01]} 68. Qd5+ {[%emt 0:00:08]} Kf6 {[%emt 0:00:37]} 69. Qd4+ {[%emt 0:01:57]} Ke6 {[%emt 0:00:12]} 70. Qb6+ {[%emt 0:00:19]} Kf7 {[%emt 0:00:13]} 0-1

[Event "17th Memorial Lezcano Montalvo 2025"]
[Site "Gran Canaria"]
[Date "2025.04.17"]
[Round "6.8"]
[White "Martinez Ramirez, Lennis"]
[Black "Meneses Gonzalez, Kevin Moises"]
[Result "1-0"]
[Annotator "RC"]
[ECO "B07"]
[WhiteElo "2443"]
[BlackElo "2307"]
[PlyCount "117"]
[EventDate "2025.04.13"]
[EventType "swiss"]
[EventCountry "ESP"]
[SourceTitle "playchess.com"]
[Source "ChessBase"]
[SourceQuality "1"]
[TimeControl "5400+30"]

1. Nf3 {[%emt 0:00:01]} g6 {[%emt 0:00:06]} 2. d4 {[%emt 0:00:53]} Bg7 {[%emt 0:00:05]} 3. g3 {[%emt 0:00:44]} d6 {[%emt 0:00:19]} 4. Bg2 {[%emt 0:00:02]} Nd7 {[%emt 0:00:32]} 5. O-O {[%emt 0:00:07]} e5 {[%emt 0:00:12]} 6. Nc3 {[%emt 0:00:58]} Ngf6 {[%emt 0:00:57]} 7. e4 {[%emt 0:00:42]} O-O {[%emt 0:00:05]} 8. h3 {[%emt 0:00:04]} Re8 {[%emt 0:00:02]} 9. Re1 {[%emt 0:00:11]} c6 {[%emt 0:02:23]} 10. a4 {[%emt 0:00:42]} a5 {[%emt 0:01:58]} 11. Be3 {[%emt 0:00:11]} exd4 {[%emt 0:02:00]} 12. Bxd4 {[%emt 0:00:31]} Qc7 {[%emt 0:05:32]} 13. Nd2 {[%emt 0:03:49]} Re6 {[%emt 0:36:24]} 14. Nc4 {[%emt 0:00:47]} b6 {[%emt 0:08:59]} 15. Qd2 {[%emt 0:24:13]} Ba6 {[%emt 0:01:13]} 16. Ne3 {[%emt 0:02:27]} h5 {[%emt 0:06:42]} 17. g4 {[%emt 0:15:13]} Nc5 {[%emt 0:04:43]} 18. g5 {[%emt 0:03:28]} Nfd7 {[%emt 0:06:12]} 19. Bxg7 {[%emt 0:00:53]} Kxg7 {[%emt 0:00:02]} 20. f4 {[%emt 0:01:23]} Rae8 {[%emt 0:05:31]} 21. Rad1 {[%emt 0:00:04]} Nb7 {[%emt 0:05:01]} 22. h4 {[%emt 0:22:22]} Ndc5 {[%emt 0:00:50]} 23. Qd4+ {[%emt 0:04:43]} Kg8 {[%emt 0:00:08]} 24. b3 {[%emt 0:05:24]} Qe7 {[%emt 0:05:30]} 25. Kf2 {[%emt 0:00:01]} Qf8 {[%emt 0:01:16]} 26. Bf3 {[%emt 0:04:15]} Qg7 {[%emt 0:00:44]} 27. Qxg7+ {[%emt 0:00:02]} Kxg7 {[%emt 0:00:01]} 28. f5 {[%emt 0:00:15]} Re5 {[%emt 0:00:08]} 29. f6+ {[%emt 0:00:01]} Kf8 {[%emt 0:00:15]} 30. Ng2 {[%emt 0:00:13]} Ne6 {[%emt 0:00:15]} 31. Rd2 {[%emt 0:01:27]} Rc5 {[%emt 0:00:41]} 32. Nd1 {[%emt 0:00:31]} Re5 {[%emt 0:02:03]} 33. Re3 {[%emt 0:01:59]} Nec5 {[%emt 0:00:25]} 34. Nc3 {[%emt 0:00:07]} Ne6 {[%emt 0:01:30]} 35. Rd1 {[%emt 0:00:29]} Nec5 {[%emt 0:00:51]} 36. Rb1 {[%emt 0:02:01]} Nd7 {[%emt 0:00:38]} 37. Rbe1 {[%emt 0:01:21]} Ndc5 {[%emt 0:00:38]} 38. Nf4 {[%emt 0:00:08]} Ne6 {[%emt 0:00:42]} 39. Nh3 {[%emt 0:01:35]} Nd4 {[%emt 0:00:09]} 40. Bd1 {[%emt 0:00:35]} Nc5 {[%emt 0:01:00]} 41. Ng1 {[%emt 0:00:36]} Nce6 {[%emt 0:01:25]} 42. Nb1 {[%emt 0:00:07]} Nf4 {[%emt 0:00:24]} 43. Nd2 {[%emt 0:00:22]} Rc5 {[%emt 0:00:45]} 44. Kg3 {[%emt 0:02:27]} Nde6 {[%emt 0:01:30]} 45. Rf3 {[%emt 0:02:05]} d5 {[%emt 0:00:03]} 46. e5 {[%emt 0:00:37]} b5 {[%emt 0:00:44]} 47. Rxf4 {[%emt 0:00:17]} Nxf4 {[%emt 0:00:01]} 48. Kxf4 {[%emt 0:00:01]} bxa4 {[%emt 0:00:01]} 49. bxa4 {[%emt 0:00:02]} Rb8 {[%emt 0:00:02]} 50. Ngf3 {[%emt 0:00:48]} Rb4+ {[%emt 0:00:08]} 51. Kg3 {[%emt 0:00:13]} Bc8 {[%emt 0:00:18]} 52. Re3 {[%emt 0:00:40]} Rg4+ {[%emt 0:01:29]} 53. Kf2 {[%emt 0:00:02]} Rxa4 {[%emt 0:00:04]} 54. c4 {[%emt 0:01:11]} Ra2 {[%emt 0:00:10]} 55. Rb3 {[%emt 0:00:51]} Ke8 {[%emt 0:01:30]} 56. Rb8 {[%emt 0:00:01]} Kd7 {[%emt 0:02:03]} 57. Rxc8 {[%emt 0:00:32]} Kxc8 {[%emt 0:00:05]} 58. e6 {[%emt 0:00:01]} dxc4 {[%emt 0:01:30]} 59. exf7 {[%emt 0:00:13]} 1-0

[Event "17th Memorial Lezcano Montalvo 2025"]
[Site "Gran Canaria"]
[Date "2025.04.17"]
[Round "6.9"]
[White "Castellanos Gomez, Alejandro"]
[Black "Kovchan, Alexander"]
[Result "1-0"]
[Annotator "RC"]
[ECO "E71"]
[WhiteElo "2267"]
[BlackElo "2433"]
[PlyCount "91"]
[EventDate "2025.04.13"]
[EventType "swiss"]
[EventCountry "ESP"]
[SourceTitle "playchess.com"]
[Source "ChessBase"]
[SourceQuality "1"]
[TimeControl "5400+30"]

1. d4 {[%emt 0:00:03]} g6 {[%emt 0:00:32]} 2. e4 {[%emt 0:00:24]} Bg7 {[%emt 0:00:09]} 3. c4 {[%emt 0:00:15]} d6 {[%emt 0:00:45]} 4. Nc3 {[%emt 0:00:07]} c5 {[%emt 0:00:14]} 5. d5 {[%emt 0:00:22]} Nf6 {[%emt 0:00:38]} 6. h3 {[%emt 0:00:20]} e6 {[%emt 0:01:21]} 7. Bd3 {[%emt 0:02:19]} exd5 {[%emt 0:00:32]} 8. exd5 {[%emt 0:00:06]} Qe7+ {[%emt 0:00:26]} 9. Qe2 {[%emt 0:09:48]} Nfd7 {[%emt 0:08:55]} 10. Nf3 {[%emt 0:10:58]} Bxc3+ {[%emt 0:00:46]} 11. bxc3 {[%emt 0:00:11]} Qxe2+ {[%emt 0:01:52]} 12. Kxe2 {[%emt 0:01:27]} f6 {[%emt 0:00:08]} 13. h4 {[%emt 0:04:01]} O-O {[%emt 0:03:26]} 14. a4 {[%emt 0:04:31]} Ne5 {[%emt 0:11:49]} 15. Nxe5 {[%emt 0:06:40]} fxe5 {[%emt 0:01:02]} 16. h5 {[%emt 0:04:37]} Bf5 {[%emt 0:02:20]} 17. hxg6 {[%emt 0:04:00]} Bxd3+ {[%emt 0:01:45]} 18. Kxd3 {[%emt 0:00:07]} hxg6 {[%emt 0:00:04]} 19. Bg5 {[%emt 0:07:27]} Rf5 {[%emt 0:26:10]} 20. Be7 {[%emt 0:02:47]} Nd7 {[%emt 0:02:19]} 21. Rh6 {[%emt 0:06:48]} Re8 {[%emt 0:01:55]} 22. Bxd6 {[%emt 0:00:58]} Rxf2 {[%emt 0:19:53]} 23. Rah1 {[%emt 0:02:23]} Nf6 {[%emt 0:00:31]} 24. Rh8+ {[%emt 0:00:40]} Kf7 {[%emt 0:00:10]} 25. Rxe8 {[%emt 0:00:30]} Kxe8 {[%emt 0:01:03]} 26. Rh8+ {[%emt 0:03:26]} Kf7 {[%emt 0:01:09]} 27. Bxe5 {[%emt 0:00:28]} Ng4 {[%emt 0:02:04]} 28. Bd6 {[%emt 0:07:41]} Rxg2 {[%emt 0:00:08]} 29. Bxc5 {[%emt 0:01:51]} Rg3+ {[%emt 0:05:11]} 30. Kc2 {[%emt 0:00:53]} b6 {[%emt 0:03:00]} 31. Bd4 {[%emt 0:00:34]} Ne3+ {[%emt 0:00:41]} 32. Kb3 {[%emt 0:03:27]} Nf5 {[%emt 0:00:21]} 33. Kb4 {[%emt 0:04:06]} Nxd4 {[%emt 0:03:18]} 34. cxd4 {[%emt 0:00:08]} Rd3 {[%emt 0:00:03]} 35. Rh7+ {[%emt 0:00:50]} Kf6 {[%emt 0:00:02]} 36. Rxa7 {[%emt 0:00:34]} g5 {[%emt 0:00:40]} 37. Ra6 {[%emt 0:00:50]} g4 {[%emt 0:00:17]} 38. Rxb6+ {[%emt 0:00:05]} Kf5 {[%emt 0:00:03]} 39. Rb8 {[%emt 0:03:31]} Rxd4 {[%emt 0:00:13]} 40. a5 {[%emt 0:01:55]} Rd1 {[%emt 0:01:29]} 41. Rf8+ {[%emt 0:00:51]} Ke4 {[%emt 0:01:01]} 42. a6 {[%emt 0:00:36]} Ra1 {[%emt 0:00:44]} 43. Kb5 {[%emt 0:02:19]} Rb1+ {[%emt 0:01:16]} 44. Kc5 {[%emt 0:00:10]} Ra1 {[%emt 0:00:05]} 45. d6 {[%emt 0:01:48]} g3 {[%emt 0:00:07]} 46. Rg8 {[%emt 0:05:38]} 1-0